[Event "13th Chennai Open 2022"]
[Site "Chennai"]
[Date "2022.06.20"]
[Round "3.12"]
[White "Gusain, Himal"]
[Black "Apoorv Kamble"]
[Result "1/2-1/2"]
[ECO "D00"]
[WhiteElo "2396"]
[BlackElo "1846"]
[Annotator "TA"]
[PlyCount "100"]
[EventDate "2022.06.19"]
[EventType "swiss"]
[EventCountry "IND"]
[SourceTitle "playchess.com"]
[Source "ChessBase"]
[SourceQuality "1"]
[TimeControl "5400+30"]

{[%evp 9,100,4,9,-3,9,8,11,22,23,13,7,0,0,-16,-13,-21,-11,-22,-10,-33,-16,-29,-1,0,-6,-15,0,0,7,0,0,0,0,0,0,0,0,-2,0,0,0,0,0,0,0,0,0,0,0,0,0,-7,0,0,0,-20,0,0,0,0,0,0,0,-91,-103,-81,-68,-92,-90,-146,-43,-167,-139,-146,-13,-26,0,-272,-272,-273,-268,-418,-411,-401,-397,-383,-230,-182,-17,-17,-17,-18,-18]} 1. d4 {[%emt 0:00:05]} Nf6 {[%emt 0:00:09]} 2. Nc3 {[%emt 0:00:39]} d5 {[%emt 0:00:11]} 3. Bf4 {[%emt 0:00:10]} Bf5 {[%emt 0:00:11]} 4. e3 {[%emt 0:00:44]} e6 {[%emt 0:00:22]} 5. Bd3 {[%emt 0:00:19]} Bg6 {[%emt 0:00:20]} 6. h4 {[%emt 0:00:45][%cal Bh2h4,Bh4h5,Bh5h6][%mdl 32] D00: 1 d4 d5: Unusual lines.} Bd6 {[%emt 0:04:20]} 7. h5 {[%emt 0:02:51]} Bxd3 {[%emt 0:02:00]} 8. Qxd3 {[%emt 0:00:04]} Bxf4 {[%emt 0:00:20]} 9. exf4 {[%emt 0:00:06] [#]} Qd6 $146 {[%emt 0:00:11]} ({Predecessor:} 9... O-O 10. Nf3 c5 11. dxc5 Na6 12. O-O-O Rc8 13. h6 g6 14. Ne5 Qe7 15. a3 Qxc5 {1-0 (30) Erigaisi,A (2681)-Sjugirov,S (2696) Chess.com INT 2022}) 10. Nb5 {[%emt 0:04:13]} Qb6 {[%emt 0:01:17]} (10... Qxf4 $2 11. Ne2 (11. g3 Qe4+ 12. Qxe4 Nxe4 $18) 11... Qe4 12. Qxe4 (12. Nxc7+ Kd7 $18) 12... Nxe4 13. Nxc7+ Ke7 14. Nxa8 $18) 11. h6 {[%emt 1:26:04]} g6 {[%emt 1:26:39]} 12. Nf3 {[%emt 0:00:30]} Nbd7 {[%emt 0:00:30]} 13. Ne5 {[%emt 0:00:30]} c5 {[%emt 0:00:30]} 14. a4 {[%emt 0:00:30] [#] Threatens to win with a5.} a6 {[%emt 0:00:30]} 15. Nxd7 $1 {[%emt 0:00:30]} Nxd7 {[%emt 0:00:30]} (15... Kxd7 {keeps more tension.} 16. dxc5 Qa5+ 17. Nc3 Qxc5 18. O-O-O Rac8) 16. dxc5 {[%emt 0:00:30]} Qxc5 {[%emt 0:00:30]} 17. Nd4 {[%emt 0:00:30]} Qc4 {[%emt 0:00:30]} 18. Qd2 {[%emt 0:00:30]} Rc8 19. Rh3 {[%emt 0:00:30]} O-O {[%emt 0:01:00]} 20. Rc3 {[%emt 0:00:30]} Qb4 {[%emt 0:00:30]} 21. Rxc8 {[%emt 0:00:30]} Qxd2+ {[%emt 0:00:30]} 22. Kxd2 {[%emt 0:00:30]} Rxc8 $11 {[%emt 0:00:30][%mdl 4096] Endgame KRN-KRN} 23. b3 {[%emt 0:00:30]} b6 {[%emt 0:00:30]} 24. g4 {[%emt 0:00:30]} Kf8 {[%emt 0:00:30]} 25. Re1 $1 {[%emt 0:00:30]} Ke7 {[%emt 0:00:30]} 26. f5 {[%emt 0:00:30]} gxf5 {[%emt 0:00:30]} 27. gxf5 {[%emt 0:00:30]} e5 {[%emt 0:00:30]} 28. f4 $1 {[%emt 0:00:30]} e4 {[%emt 0:00:30]} 29. Rg1 {[%emt 0:00:30] Prevents Rg8.} Nf6 {[%emt 0:00:30]} 30. Rg7 {[%emt 0:00:30]} Nh5 {[%emt 0:00:30][%csl LRf4,LRg7]} 31. Rg5 {[%emt 0:00:30]} Nf6 {[%emt 0:00:30]} 32. Ne2 {[%emt 0:00:30]} Rb8 {[%emt 0:00:30]} 33. Ke3 {[%emt 0:00:30]} b5 {[%emt 0:00:30]} 34. axb5 {[%emt 0:00:30]} axb5 {[%emt 0:00:30]} 35. b4 {[%emt 0:00:30]} Ra8 {[%emt 0:00:30]} 36. c3 {[%emt 0:00:30]} (36. Nd4 $11 {keeps the balance.}) 36... Ra1 $17 {[%emt 0:00:30]} 37. Nd4 {[%emt 0:00:30]} Rh1 {[%emt 0:00:30]} 38. Nxb5 {[%emt 0:00:30]} Rxh6 {[%emt 0:00:30] And now ...Rh3+ would win.} 39. Rg3 {[%emt 0:00:30] Against Rh3} (39. Nd4 $142) 39... Rh4 {[%emt 0:00:30]} (39... Rh1 $17 {...h5 is the strong threat.} 40. Nd4 h5 41. Nc6+ Kf8) 40. Rg1 {[%emt 0:00:30]} (40. Kd4 $1 $15) 40... Rh3+ $19 {[%emt 0:00:30]} 41. Kd2 {[%emt 0:00:30] [#]} Rh2+ {[%emt 0:00:30]} (41... Nh5 $1 $17 42. Rg4 Rd3+ 43. Kc2 Rf3 44. f6+ Kxf6) 42. Ke3 $11 {[%emt 0:00:30]} Rh3+ {[%emt 0:00:30]} 43. Kd4 $2 {[%emt 0:00:30][%mdl 8192]} (43. Kd2 $1 $11 {and White has nothing to worry.}) 43... Rd3+ $19 {[%emt 0:00:30]} 44. Kc5 {[%emt 0:00:30]} e3 {[%emt 0:00:30]} 45. Re1 {[%emt 0:00:30]} (45. Kc6 {was forced.}) 45... Ne4+ {[%emt 0:00:30]} 46. Kc6 {[%emt 0:00:30]} Kf6 {[%emt 0:00:30]} 47. Nc7 {[%emt 0:00:30]} Rxc3+ {[%emt 0:00:30]} 48. Kxd5 {[%emt 0:00:30] Black must now prevent Nb5.} Rxc7 {[%emt 0:00:30]} (48... Nd2 $19 49. b5 Rxc7 50. Rxe3 Kxf5) 49. Kxe4 $11 {[%emt 0:00:30]} Rc4+ {[%emt 0:00:30]} 50. Kxe3 {[%emt 0:00:30]} Rxb4 {[%emt 0:00:30] Weighted Error Value: White=0.28 (precise) /Black=0.24 (precise)} 1/2-1/2

[Event "13th Chennai Open 2022"]
[Site "Chennai"]
[Date "2022.06.20"]
[Round "3.13"]
[White "Majumder Shrayan"]
[Black "Girinath, P.D.S."]
[Result "1-0"]
[ECO "A85"]
[WhiteElo "1741"]
[BlackElo "2361"]
[Annotator "TA"]
[PlyCount "63"]
[EventDate "2022.06.19"]
[EventType "swiss"]
[EventCountry "IND"]
[SourceTitle "playchess.com"]
[Source "ChessBase"]
[SourceQuality "1"]
[TimeControl "5400+30"]

{[%evp 10,63,18,1,34,31,57,41,59,41,55,49,72,17,57,65,135,44,36,0,0,0,0,0,0,0,0,0,0,0,118,43,235,230,211,215,307,289,387,393,364,169,609,616,670,643,627,615,1028,1007,872,786,785,718,698,679]} 1. d4 {[%emt 0:00:10]} e6 {[%emt 0:02:41]} 2. c4 {[%emt 0:00:09]} f5 {[%emt 0:00:42]} 3. Nc3 {[%emt 0:00:31]} Nf6 {[%emt 0:00:09]} 4. e3 {[%emt 0:00:58]} b6 {[%emt 0:03:43]} 5. Bd3 {[%emt 0:00:09]} Bb7 {[%emt 0:00:07]} 6. f3 {[%emt 0:00:06]} Nh5 {[%emt 0:10:28] A85: Dutch Defence: 2 c4 Nf6 3 Nc3.} 7. Nge2 {[%emt 0:17:56]} Qh4+ {[%emt 0:16:10]} 8. g3 {[%emt 0:01:37] [#]} Qe7 $146 {[%emt 0:00:10] White is slightly better.} ({Predecessor:} 8... Qh3 9. Kf2 Nf6 10. e4 fxe4 11. Nf4 Qf5 12. g4 Qa5 13. Nxe4 Nxe4+ 14. Bxe4 Bxe4 15. fxe4 {0-1 (56) Suleymanli,A (2091)-Balajayeva,K (2180) Nakhchivan 2016}) 9. O-O {[%emt 0:04:29]} g6 {[%emt 0:00:49]} 10. e4 {[%emt 0:01:44]} Nc6 {[%emt 0:12:53]} 11. g4 {[%emt 0:08:09]} (11. Be3 $16) 11... fxg4 {[%emt 0:05:27]} 12. fxg4 {[%emt 0:00:15]} Nf6 {[%emt 0:00:01]} ({Black should try} 12... Ng7 $1 $14) 13. Bg5 {[%emt 0:04:03]} (13. Nb5 $16 Nxg4 14. Nxc7+ Kd8 15. Nxa8) 13... Bg7 $14 {[%emt 0:00:10]} 14. Nb5 {[%emt 0:14:34]} O-O {[%emt 0:18:36] ...a6 is the strong threat.} 15. e5 $36 {[%emt 0:12:36][%mdl 2048] White has good play.} Nxe5 {[%emt 0:15:30]} 16. dxe5 {[%emt 0:00:07]} Qc5+ {[%emt 0:01:37]} 17. Ned4 {[%emt 0:00:51]} Qxe5 {[%emt 0:02:27]} 18. Bf4 {[%emt 0:01:24]} Qc5 {[%emt 0:00:17][%cal Of6g4] And now ...Nxg4! would win.} 19. Be3 $1 {[%emt 0:13:27][%cal Od4f5] Black must now prevent Nf5!} ({Avoid the trap} 19. Bxc7 $2 Nd5 $1 20. Rxf8+ Rxf8 $19) 19... Kh8 {[%emt 0:02:49]} (19... Qe5 $11 {remains equal.} 20. Bf4 Qc5) 20. Be2 {[%emt 0:02:59]} ({White should play} 20. Qe2 $16) 20... e5 $2 {[%emt 0:05:00] [#] Loses the game.} ({Better is} 20... Rad8 $14) 21. Nc2 $1 $18 {[%emt 0:08:54]} Qc6 {[%emt 0:00:32][%csl Gb7][%cal Rc6g2]} 22. Bf3 {[%emt 0:00:06] Against Qg2+} e4 {[%emt 0:00:21]} (22... Ne4 $142 23. Qd5 Qxd5 24. cxd5 Nf6) 23. Be2 {[%emt 0:00:27]} d5 {[%emt 0:00:09]} 24. g5 {[%emt 0:02:52]} Nh5 {[%emt 0:00:49]} 25. Ncd4 {[%emt 0:01:46]} (25. Qxd5 $142 Bxb2 26. Rad1) 25... Qd7 $2 {[%emt 0:00:25]} (25... Rxf1+ 26. Bxf1 (26. Qxf1 Qd7 $16) 26... Qd7) 26. Rxf8+ {[%emt 0:00:16] White is clearly winning.} Rxf8 {[%emt 0:00:11]} 27. Bg4 {[%emt 0:00:15] Prevents Qh3.} Qe7 {[%emt 0:00:46]} 28. Ne6 {[%emt 0:00:29] Against Nf4} dxc4 {[%emt 0:00:34]} 29. Nxf8 {[%emt 0:00:25]} Qxf8 {[%emt 0:00:36]} 30. Bxh5 {[%emt 0:00:22]} gxh5 {[%emt 0:00:11]} 31. Qxh5 {[%emt 0:00:22] g6 would kill now.} Qf3 {[%emt 0:01:01]} 32. Qe8+ {[%emt 0:00:53] Weighted Error Value: White=0.24 (precise) /Black=0.79} 1-0

[Event "13th Chennai Open 2022"]
[Site "Chennai"]
[Date "2022.06.20"]
[Round "3.14"]
[White "Swayham P Das"]
[Black "Ravichandran, Siddharth"]
[Result "0-1"]
[ECO "B28"]
[WhiteElo "1825"]
[BlackElo "2352"]
[Annotator "TA"]
[PlyCount "58"]
[EventDate "2022.06.19"]
[EventType "swiss"]
[EventCountry "IND"]
[SourceTitle "playchess.com"]
[Source "ChessBase"]
[SourceQuality "1"]
[TimeControl "5400+30"]

{[%evp 12,58,-6,-14,6,19,37,29,30,0,49,-15,0,0,32,-46,-44,-39,-36,-28,-32,-112,-100,-147,-162,-235,-242,-387,-390,-694,-675,-1239,-1220,-1806,-1812,-1789,-1791,-1733,-1728,-1696,-1640,-2647,-2608,-2127,-1954,-2385,-2314,-1747,-1060]} 1. e4 {[%emt 0:00:06]} c5 {[%emt 0:01:00]} 2. Nf3 {[%emt 0:00:09]} a6 {[%emt 0:00:11]} 3. d4 {[%emt 0:00:08]} cxd4 {[%emt 0:00:10]} 4. Nxd4 {[%emt 0:00:06]} Nf6 {[%emt 0:00:08]} 5. Nc3 {[%emt 0:00:11]} e5 {[%emt 0:00:42]} 6. Nb3 {[%emt 0:00:10]} Bb4 {[%emt 0:00:28]} 7. Qf3 {[%emt 0:14:43]} d5 {[%emt 0:07:12] B28: Sicilian: 2 Nf3 a6 (O'Kelly Variation).} 8. exd5 {[%emt 0:00:45]} Bg4 {[%emt 0:06:47]} 9. Qg3 {[%emt 0:01:14]} O-O {[%emt 0:15:43] White has an edge.} (9... Qxd5 $2 10. f3 $18) ({Don't play} 9... Bxc3+ 10. bxc3 O-O 11. c4 $16 (11. Qxe5 $2 Re8 $19)) 10. Bd2 {[%emt 0:04:00]} Bxc3 {[%emt 0:01:43] [#]} (10... Re8 $11) 11. Qxc3 $146 {[%emt 0:00:11]} (11. Bxc3 $14 Qxd5 12. Bd3 (12. f3 Bh5 $11)) ({Predecessor:} 11. Bxc3 Qxd5 12. Bd3 Nc6 13. O-O Nd4 14. h3 Bh5 15. f4 Be2 16. Rf2 exf4 17. Qxf4 Nxb3 18. axb3 Bxd3 {1-0 (49) Moll Pons,J (1768)-Carrasco Gomez,A (1544) Salobrena 2021}) 11... Qxd5 {[%emt 0:04:27]} 12. f3 {[%emt 0:00:48]} Bf5 {[%emt 0:01:56]} (12... Rc8 $5 {[%cal Rc8c3]} 13. Qd3 Be6 $11) 13. Qc5 {[%emt 0:03:59]} (13. O-O-O $1 $14) 13... Qd7 {[%emt 0:02:17] Strongly threatening ...Rc8.} 14. c3 {[%emt 0:02:26]} ({Reject} 14. Bb4 Rc8 15. Rd1 Qe8 $17) 14... Rc8 {[%emt 0:04:38]} 15. Qf2 {[%emt 0:00:34]} e4 {[%emt 0:06:35]} 16. Qd4 {[%emt 0:05:27]} ({White should try} 16. Be2 $15) 16... Qe6 $36 {[%emt 0:07:31][%mdl 2048] Black is on the roll.} 17. Kf2 {[%emt 0:10:36]} ({White should play} 17. fxe4 Bxe4 18. Be2) 17... Nc6 {[%emt 0:03:16][%cal Bb8c6,Bc6e5,Be5g4][%mdl 32]} 18. Qe3 {[%emt 0:00:10]} (18. Qc4 $142) 18... Re8 $19 {[%emt 0:04:49]} 19. c4 {[%emt 0:04:00]} (19. Re1 {might work better.}) 19... Ne5 {[%emt 0:03:11] [#] ...exf3 is the strong threat.} 20. Nd4 {[%emt 0:00:57]} (20. h3 exf3 21. gxf3) 20... Qd7 {[%emt 0:00:35] Hoping for ...exf3. Black is clearly winning.} 21. Nxf5 {[%emt 0:01:54] Black must now prevent Qg5.} exf3 {[%emt 0:05:23]} 22. Qf4 {[%emt 0:06:54]} Neg4+ {[%emt 0:01:19] Pair of Knights!} 23. Kxf3 {[%emt 0:00:08]} Qc6+ {[%emt 0:00:10]} 24. Kg3 {[%emt 0:00:07]} Nh5+ {[%emt 0:00:12]} 25. Kxg4 {[%emt 0:00:06]} Nxf4 {[%emt 0:00:07]} 26. Bxf4 {[%emt 0:00:43]} Qg6+ {[%emt 0:00:14][%mdl 64] [#] Deflection} 27. Kf3 {[%emt 0:00:42]} Qxf5 {[%emt 0:00:09]} 28. h4 {[%emt 0:00:38] Prevents g5.} h5 {[%emt 0:00:42] ( -> ...Qg4+)} 29. g3 {[%emt 0:02:07]} Qe4+ {[%emt 0:00:08] Weighted Error Value: White=0.94/Black=0.07 (flawless)} 0-1

[Event "13th Chennai Open 2022"]
[Site "Chennai"]
[Date "2022.06.20"]
[Round "3.15"]
[White "Karthikeyan, P.."]
[Black "Patil Priyanshu"]
[Result "1/2-1/2"]
[ECO "A48"]
[WhiteElo "2361"]
[BlackElo "1796"]
[Annotator "TA"]
[PlyCount "63"]
[EventDate "2022.06.19"]
[EventType "swiss"]
[EventCountry "IND"]
[SourceTitle "playchess.com"]
[Source "ChessBase"]
[SourceQuality "1"]
[TimeControl "5400+30"]

{[%evp 9,63,8,13,12,35,7,14,25,23,16,35,35,24,34,34,34,39,16,27,18,16,39,29,27,32,26,41,18,14,-14,-18,-18,-16,-36,0,0,0,-9,9,9,12,0,0,-10,-20,-104,-120,-114,-115,-120,-114,-116,0,0,0,-122]} 1. Nf3 {[%emt 0:00:12]} c5 {[%emt 0:00:18]} 2. e3 {[%emt 0:01:00]} g6 {[%emt 0:01:16]} 3. d4 {[%emt 0:00:02]} Bg7 {[%emt 0:00:40]} 4. Nbd2 {[%emt 0:02:47]} Nf6 {[%emt 0:06:01]} 5. dxc5 {[%emt 0:02:34]} Qa5 {[%emt 0:00:30]} 6. a3 {[%emt 0:00:40] A48: 1 d4 Nf6 2 Nf3 g6: Torre, London and Colle Systems.} Nc6 {[%emt 0:01:54]} 7. c4 {[%emt 0:01:47]} O-O {[%emt 0:05:52]} 8. Be2 {[%emt 0:07:09]} Qxc5 {[%emt 0:04:18]} 9. b4 {[%emt 0:00:17] [#]} Qb6 $146 {[%emt 0:00:35][%cal Of6e4]} ({Predecessor:} 9... Qf5 10. Bb2 d6 11. O-O a5 12. e4 Qd7 13. Qb3 Qc7 14. b5 Nd8 15. e5 Nd7 16. exd6 Qxd6 17. Bxg7 Kxg7 {1-0 (51) Palacios de la Prida,E-Bellon Lopez,J Malaga 1972}) 10. c5 {[%emt 0:05:23]} Qc7 {[%emt 0:00:35]} 11. Bb2 {[%emt 0:00:03]} d6 {[%emt 0:09:02]} 12. cxd6 {[%emt 0:08:00]} Qxd6 {[%emt 0:00:25]} 13. b5 {[%emt 0:02:45]} Na5 {[%emt 0:04:56]} 14. Be5 {[%emt 0:04:16]} Qe6 {[%emt 0:03:03]} 15. Bc3 {[%emt 0:01:24]} b6 {[%emt 0:00:30]} 16. Bxa5 {[%emt 0:04:22]} bxa5 {[%emt 0:00:02]} 17. Nd4 {[%emt 0:00:07]} Qd7 {[%emt 0:02:27]} 18. Bf3 {[%emt 0:01:05]} Bb7 {[%emt 0:05:50]} 19. Bc6 {[%emt 0:02:20]} Bxc6 {[%emt 0:11:45]} 20. bxc6 {[%emt 0:00:16]} Qd5 {[%emt 0:00:36]} 21. Qf3 {[%emt 0:05:06]} e5 {[%emt 0:01:48]} 22. Qxd5 {[%emt 0:01:40]} Nxd5 {[%emt 0:00:02][%cal Bf6d5,Bd5e7,Be7c6][%mdl 32]} 23. Nb5 {[%emt 0:02:11]} a6 {[%emt 0:02:02]} 24. Nd6 {[%emt 0:04:24]} Rad8 {[%emt 0:07:32][%cal Ba8d8,Bd8d7,Bd7c7][%mdl 32]} 25. N2c4 {[%emt 0:05:32] [#] And now 0-0 would win. Pair of Knights!} Ne7 $1 {[%emt 0:01:47]} 26. c7 {[%emt 0:12:35]} Rd7 {[%emt 0:00:20]} 27. e4 {[%emt 0:01:03]} (27. O-O $11 {remains equal.} Rxc7 28. Rfd1) 27... Rxc7 $17 {[%emt 0:00:56]} 28. Nxa5 {[%emt 0:00:13][%cal Bc4a5,Ba5b7,Bb7c5][%mdl 32]} Rd8 {[%emt 0:02:45]} 29. Rd1 {[%emt 0:02:22]} Nc6 {[%emt 0:27:13]} 30. Nab7 {[%emt 0:02:10] [#]} Rdd7 {[%emt 0:00:00]} (30... Rb8 $1 $17 {Hoping for ...Nd4.} 31. Nc5 Ra8) 31. Nc5 $11 {[%emt 0:01:38][%csl LRa6,LRd7]} Rd8 {[%emt 0:00:00]} ({Black should play} 31... Re7 $11 32. Nxa6 Ra7) 32. Ncb7 $1 {[%emt 0:00:25] Weighted Error Value: White=0.12 (very precise) /Black=0.07 (flawless)} 1/2-1/2

[Event "13th Chennai Open 2022"]
[Site "Chennai"]
[Date "2022.06.20"]
[Round "3.16"]
[White "Krishna Raaju J"]
[Black "Abdyjapar, Asyl"]
[Result "0-1"]
[ECO "E63"]
[WhiteElo "1777"]
[BlackElo "2346"]
[Annotator "TA"]
[PlyCount "84"]
[EventDate "2022.06.19"]
[EventType "swiss"]
[EventCountry "IND"]
[SourceTitle "playchess.com"]
[Source "ChessBase"]
[SourceQuality "1"]
[TimeControl "5400+30"]

{[%evp 21,84,25,29,0,9,-25,-33,-16,-24,-31,-33,-129,-96,-93,-90,-99,-99,-85,-81,-120,-118,-124,-120,-150,-155,-153,-146,-200,-177,-185,-153,-139,-144,-170,-166,-212,-184,-600,-584,-756,-743,-740,-731,-713,-632,-627,-619,-683,-654,-646,-631,-737,-725,-29993,-815,-6287,-965,-2189,-2157,-1760,-1722,-29983,-471,-29984,-29984]} 1. d4 {[%emt 0:00:12]} Nf6 {[%emt 0:00:04]} 2. Nf3 {[%emt 0:00:06]} g6 {[%emt 0:00:45]} 3. g3 {[%emt 0:00:14]} Bg7 {[%emt 0:00:05]} 4. Bg2 {[%emt 0:00:03]} O-O {[%emt 0:00:07]} 5. O-O {[%emt 0:00:13]} d6 {[%emt 0:00:09]} 6. c4 {[%emt 0:04:59]} Nc6 {[%emt 0:00:34]} 7. Nc3 {[%emt 0:02:40]} a6 {[%emt 0:00:05]} 8. h3 {[%emt 0:08:17]} Bd7 {[%emt 0:03:04]} 9. e4 {[%emt 0:00:57]} e5 {[%emt 0:00:32]} 10. Be3 {[%emt 0:09:52]} exd4 {[%emt 0:01:56]} 11. Nxd4 {[%emt 0:00:24]} Re8 {[%emt 0:00:30][%cal Ob7b5]} 12. Qd2 {[%emt 0:03:25] E63: King's Indian: Fianchetto: Panno Variation with 7...a6.} Qc8 {[%emt 0:00:51]} 13. Kh2 {[%emt 0:00:39]} Ne5 {[%emt 0:03:20]} 14. Qe2 {[%emt 0:03:59] Black is slightly better.} c5 {[%emt 0:02:05] [#]} 15. Nc2 $146 {[%emt 0:04:45]} ({Predecessor:} 15. Nb3 Be6 16. Nd5 Bxd5 17. cxd5 b5 18. Nd2 Ned7 19. Rac1 Qb7 20. b3 Rac8 21. f4 {1-0 (46) Kaabi,M (2342)-El Jawich,A (2139) Doha 2011}) 15... b5 {[%emt 0:03:25]} 16. b3 {[%emt 0:07:33]} (16. cxb5 $15 axb5 17. Bg5) 16... bxc4 {[%emt 0:03:19]} 17. bxc4 {[%emt 0:00:02] [#]} Nfg4+ $1 {[%emt 0:01:51]} 18. Kh1 {[%emt 0:08:11]} Nxe3 {[%emt 0:00:44] Black is more active.} 19. Nxe3 {[%emt 0:00:16]} Bxh3 {[%emt 0:00:47] A strong pair of Bishops.} 20. Rad1 {[%emt 0:01:45]} Nc6 {[%emt 0:00:57]} 21. Ncd5 {[%emt 0:07:16]} Rb8 {[%emt 0:03:59] Against Nb6} 22. Rb1 {[%emt 0:01:06]} Bxg2+ {[%emt 0:01:09]} 23. Kxg2 {[%emt 0:01:24]} Rxe4 {[%emt 0:00:33]} 24. Rxb8 {[%emt 0:04:22]} (24. Qc2 $17 Re8 25. Rxb8 Nxb8 26. Rb1) 24... Qxb8 $19 {[%emt 0:00:38]} 25. Qc2 {[%emt 0:00:13]} Re8 {[%emt 0:05:58]} 26. Rb1 {[%emt 0:01:49] [#]} Qc8 {[%emt 0:02:25]} 27. Qa4 {[%emt 0:01:27]} Nd4 {[%emt 0:01:22]} 28. Nc7 {[%emt 0:03:21]} (28. Qd1 {was necessary.}) 28... Rd8 {[%emt 0:05:39]} 29. Nxa6 {[%emt 0:13:43]} (29. Qa5) 29... Qe6 {[%emt 0:01:01]} 30. Rb8 {[%emt 0:04:24]} Qe4+ {[%emt 0:00:35]} 31. Kh2 {[%emt 0:01:21]} Rxb8 {[%emt 0:01:58]} 32. Nxb8 {[%emt 0:00:03]} Nf3+ {[%emt 0:00:44]} 33. Kg2 {[%emt 0:05:13]} Ne5+ {[%emt 0:00:34]} 34. Kh2 {[%emt 0:00:23]} Bh6 {[%emt 0:01:10]} 35. Nd7 {[%emt 0:01:28] aiming for Nf6+.} Nf3+ {[%emt 0:04:29]} 36. Kh3 {[%emt 0:00:41] Hoping for Nf6+.} Kg7 {[%emt 0:00:48] Inhibits Nf6. ( -> ...Ne1)} 37. Ng2 {[%emt 0:01:35]} Bg5 {[%emt 0:01:01]} (37... Ne1 $142 38. Nh4 Qh1+ 39. Kg4 Bd2 40. f4 h5+ 41. Kg5 Qh3 42. Nf6 Qxg3+ 43. Ng4 Qxg4#) 38. Qb5 {[%emt 0:00:33]} Qe6+ {[%emt 0:00:35]} (38... Ne1 $142 39. Qb2+ f6) 39. g4 {[%emt 0:00:07]} h5 {[%emt 0:00:16][%csl Gh5][%cal Re6g4]} 40. Qb2+ {[%emt 0:00:34]} Nd4 {[%emt 0:00:39]} 41. Nb6 {[%emt 0:00:47]} Qxg4+ {[%emt 0:00:07]} 42. Kh2 {[%emt 0:00:07]} Bf6 {[%emt 0:00:14] Weighted Error Value: White=1.23/Black=0.46} 0-1

[Event "13th Chennai Open 2022"]
[Site "Chennai"]
[Date "2022.06.20"]
[Round "3.17"]
[White "Konguvel, Ponnuswamy"]
[Black "Madhavan R Munjanattu"]
[Result "1/2-1/2"]
[ECO "C42"]
[WhiteElo "2331"]
[BlackElo "1779"]
[Annotator "TA"]
[PlyCount "77"]
[EventDate "2022.06.19"]
[EventType "swiss"]
[EventCountry "IND"]
[SourceTitle "playchess.com"]
[Source "ChessBase"]
[SourceQuality "1"]
[TimeControl "5400+30"]

{[%evp 11,77,8,50,33,93,46,40,25,33,16,41,43,49,29,47,48,48,44,43,43,43,35,65,27,26,29,39,18,94,99,138,120,109,122,111,93,93,48,57,26,35,40,19,0,0,0,0,0,0,0,0,0,0,0,0,0,0,0,0,0,0,0,0,0,0,0,0,0]} 1. e4 {[%emt 0:00:05]} e5 {[%emt 0:00:03]} 2. Nf3 {[%emt 0:00:10]} Nf6 {[%emt 0:00:09]} 3. Nxe5 {[%emt 0:00:28]} d6 {[%emt 0:00:20]} 4. Nf3 {[%emt 0:00:06]} Nxe4 {[%emt 0:00:09]} 5. Nc3 {[%emt 0:00:05]} Nxc3 {[%emt 0:02:07]} 6. dxc3 {[%emt 0:00:07]} Bg4 {[%emt 0:00:30]} 7. h3 {[%emt 0:01:50] C42: Petroff Defence: 3 Nxe5 and unusual White 3rd moves.} (7. Qd5 {feels hotter.} Nc6 8. Bb5 Bd7 9. O-O) 7... Bf5 {[%emt 0:01:31]} ({Black should play} 7... Bd7 $14) 8. Be3 {[%emt 0:05:34]} ({But not} 8. Bg5 Be7 9. Be3 Nc6 $11) (8. Qd5 $16 Bxc2 9. Qxb7) 8... Nc6 $14 {[%emt 0:04:47] [#]} 9. Bb5 $146 {[%emt 0:07:00] White is slightly better.} ({Predecessor:} 9. Qd2 Qd7 10. O-O-O Be7 11. Be2 O-O-O 12. Rhe1 h5 13. Bb5 a6 14. Bxc6 Qxc6 15. Nd4 {½-½ (23) Szegi,T (2228)-Riabov,A (2075) Slovakia 2012}) 9... a6 {[%emt 0:02:24]} 10. Ba4 {[%emt 0:00:25]} Be7 {[%emt 0:04:31]} 11. Nd4 {[%emt 0:14:13]} Bd7 {[%emt 0:01:54]} 12. Bxc6 {[%emt 0:00:38]} Bxc6 {[%emt 0:03:47]} 13. Nxc6 {[%emt 0:04:13]} bxc6 {[%emt 0:01:25]} 14. Qf3 {[%emt 0:00:03]} Qd7 {[%emt 0:01:00]} 15. O-O $36 {[%emt 0:00:52][%mdl 2048] White has the initiative.} O-O {[%emt 0:01:21]} 16. Rad1 {[%emt 0:00:03][%cal Ba1d1,Bd1d3,Bd3e3][%mdl 32]} f5 {[%emt 0:06:03]} 17. c4 {[%emt 0:02:07] White is more active.} Bf6 {[%emt 0:06:34]} 18. b3 {[%emt 0:01:32]} g6 {[%emt 0:01:13]} 19. Rd3 {[%emt 0:00:55]} Qe8 {[%emt 0:03:45]} (19... Rae8 $11) 20. Bh6 $16 {[%emt 0:07:09]} Bg7 {[%emt 0:00:39]} 21. Re3 {[%emt 0:06:59]} Qd7 {[%emt 0:01:04]} 22. Bxg7 {[%emt 0:00:39]} Kxg7 {[%emt 0:00:08]} 23. Rfe1 {[%emt 0:00:02] [#] And now Re7+ would win.} Rae8 {[%emt 0:01:05] Against Re7+} 24. h4 {[%emt 0:00:55]} Kf7 {[%emt 0:02:03]} 25. Kf1 {[%emt 0:11:56][%cal Oc4c5,Bg1f1,Bf1e1,Be1d2][%mdl 32]} Rxe3 $1 {[%emt 0:02:58]} 26. Qxe3 $11 {[%emt 0:01:18][%mdl 4096] Endgame KQR-KQR} Re8 {[%emt 0:08:53]} 27. Qa7 {[%emt 0:02:22] [#] Hoping for Rxe8. The position is equal.} Rxe1+ {[%emt 0:00:10]} 28. Kxe1 {[%emt 0:00:01] KQ-KQ} Qc8 {[%emt 0:06:35]} 29. Kd2 {[%emt 0:02:29]} c5 {[%emt 0:01:37]} 30. a3 {[%emt 0:00:12]} Ke6 {[%emt 0:00:30]} 31. b4 {[%emt 0:00:38]} cxb4 {[%emt 0:00:06]} 32. axb4 {[%emt 0:00:03]} Kd7 {[%emt 0:00:15]} 33. Qd4 {[%emt 0:00:30]} Qb7 {[%emt 0:05:17][%csl LRb4,LRg2]} 34. Qg7+ {[%emt 0:04:07]} Ke6 {[%emt 0:01:14]} 35. Qg8+ {[%emt 0:05:27]} Kf6 {[%emt 0:00:13]} 36. Qf8+ {[%emt 0:00:53]} Ke6 {[%emt 0:00:09]} 37. Qe8+ {[%emt 0:05:46]} Kf6 {[%emt 0:00:06]} 38. Qh8+ {[%emt 0:02:34]} Ke6 {[%emt 0:00:12]} 39. Qe8+ {[%emt 0:01:52] Weighted Error Value: White=0.12 (very precise) /Black=0.12 (very precise)} 1/2-1/2